bitfinex/quotes_SOLUSD_20240826
["timestamp","ask_amount","ask_price","bid_price","bid_amount"]
[1724694468417,359.87485498,156.3,156.2,6.4119]
[1724694468616,20.0,156.23,156.2,6.4119]
[1724694468813,20.0,156.21,156.2,6.4119]
[1724694470108,20.0,156.23,156.2,6.4119]
[1724694470712,20.0,156.21,156.2,6.4119]
[1724694473130,20.0,156.24,156.2,6.4119]
[1724694473537,20.0,156.22,156.2,6.4119]
[1724694475556,359.87485498,156.21,156.2,0.1]
[1724694476431,20.0,156.22,156.2,0.1]
[1724694477251,71.80470927,156.21,156.2,0.1]
[1724694477546,20.0,156.17,156.16,0.2]
[1724694477746,71.80470927,156.17,156.16,0.2]
[1724694478537,121.80470927,156.17,156.16,0.2]
[1724694479426,76.80470927,156.17,156.16,0.2]
[1724694479645,46.80470927,156.17,156.16,0.2]
[1724694480465,26.80470927,156.17,156.16,0.2]
[1724694481833,56.80470927,156.17,156.16,0.2]
[1724694482225,26.80470927,156.17,156.16,0.2]
[1724694483130,56.80470927,156.17,156.16,0.2]
[1724694483429,26.80470927,156.17,156.16,0.2]
[1724694483862,20.0,156.17,156.16,19.4147]
[1724694484070,6.80470927,156.22,156.16,26.5117]
[1724694484233,20.0,156.2,156.16,26.5117]
[1724694484453,6.80470927,156.22,156.16,26.5117]
[1724694484666,6.80470927,156.22,156.16,26.0117]
[1724694484882,255.4,156.29,156.16,26.0117]
[1724694484883,20.0,156.26,156.16,26.0117]
[1724694485080,26.80470927,156.26,156.16,32.4153]
[1724694485256,6.80470927,156.26,156.17,6.4031]
[1724694485587,401.3,156.28,156.21,6.4016]
[1724694485588,381.3,156.28,156.21,6.4016]
[1724694485791,401.3,156.3,156.2,7.7465]
[1724694486078,6.80470927,156.31,156.22,6.401]
[1724694486258,6.80470927,156.31,156.23,45.0]
[1724694486765,6.3987,156.29,156.23,51.4006]
[1724694486963,20.0,156.32,156.23,51.4006]
[1724694487268,20.0,156.32,156.23,45.0]
[1724694487653,20.0,156.34,156.24,18.7927]
[1724694488102,6.3983,156.3,156.24,18.7927]
[1724694488588,6.80470927,156.35,156.25,23.4847]
[1724694488760,20.0,156.39,156.26,45.0]
[1724694488958,20.0,156.39,156.28,6.3987]
[1724694489159,20.0,156.39,156.29,45.0]
[1724694489563,6.3959,156.35,156.29,45.0]
[1724694489758,6.3963,156.34,156.28,6.3987]
[1724694489981,6.3963,156.34,156.25,23.4847]
[1724694489982,6.3984,156.29,156.25,7.4849]
[1724694490185,6.398,156.3,156.25,7.4849]
[1724694490355,6.3977,156.31,156.25,7.4849]
[1724694490774,6.3983,156.3,156.25,7.4849]
[1724694491597,15.9885,156.37,156.25,7.4849]
[1724694491598,6.3995,156.26,156.25,7.4849]
[1724694492611,6.3992,156.27,156.25,7.4849]
[1724694492769,6.3988,156.28,156.25,7.4849]
[1724694493101,6.3989,156.28,156.25,7.4849]
[1724694493265,6.3995,156.26,156.25,7.4849]
[1724694494478,6.3991,156.28,156.25,7.4849]
[1724694495195,6.3995,156.26,156.25,7.4849]
[1724694496078,6.4016,156.21,156.2,7.7807]
[1724694496706,6.4007,156.24,156.2,7.7807]
[1724694496999,20.0,156.27,156.2,7.7807]
[1724694497370,20.0,156.25,156.2,7.7807]
[1724694497589,6.4016,156.21,156.2,7.7807]
[1724694498214,6.4024,156.19,156.18,17.6247]
[1724694498495,6.4032,156.17,156.16,7.7208]
[1724694499305,6.403,156.18,156.16,7.7208]
[1724694499806,6.4032,156.17,156.16,7.7208]
[1724694500178,26.4036,156.16,156.15,2.47e-05]
[1724694500929,65.22670927,156.16,156.15,2.47e-05]
[1724694501207,115.22670927,156.16,156.15,2.47e-05]
[1724694502511,85.22670927,156.16,156.15,2.47e-05]
[1724694502710,65.22670927,156.16,156.15,2.47e-05]
[1724694507123,58.422,156.16,156.15,2.47e-05]
[1724694507329,38.422,156.16,156.15,2.47e-05]
[1724694507897,58.422,156.16,156.15,2.47e-05]
[1724694509123,38.422,156.16,156.15,2.47e-05]
[1724694509295,6.4036,156.16,156.15,2.47e-05]
[1724694509636,26.4036,156.16,156.15,2.47e-05]
[1724694510408,33.20830927,156.16,156.15,2.47e-05]
[1724694510705,6.4086,156.04,156.03,7.3353]
[1724694511103,6.4094,156.02,156.01,17.6752]
[1724694511493,6.4098,156.01,156.0,55.114405]
[1724694513938,16.0184,156.08,156.0,55.114405]
[1724694514152,6.4083,156.05,156.0,55.114405]
[1724694514710,16.0184,156.08,156.0,55.114405]
[1724694514909,6.4086,156.05,156.0,55.114405]
[1724694515203,16.0184,156.08,156.0,55.114405]
[1724694515204,6.4098,156.01,156.0,55.114405]
[1724694515625,20.0,156.07,156.0,55.114405]
[1724694516037,6.4098,156.02,156.0,55.114405]
[1724694516332,6.4098,156.01,156.0,55.114405]
[1724694518235,46.4098,156.01,156.0,55.114405]
[1724694519033,6.4098,156.01,156.0,55.114405]
[1724694519327,46.4098,156.01,156.0,55.114405]
[1724694519834,6.4098,156.01,156.0,55.114405]
[1724694522123,26.4098,156.01,156.0,55.114405]
[1724694522329,26.4098,156.01,156.0,51.209405]
[1724694523033,26.4098,156.01,156.0,40.606405]
[1724694523940,26.4098,156.01,156.0,36.681805]
[1724694524120,33.21450927,156.01,156.0,18.480105]
[1724694524433,33.21450927,156.01,156.0,8.908205]
[1724694524634,78.21450927,156.01,156.0,0.735305]
[1724694525014,33.21450927,156.01,156.0,0.735305]
[1724694526143,6.4098,156.01,156.0,0.735305]
[1724694527139,388.10470927,156.06,156.0,8.332105]
[1724694527337,381.3,156.09,156.0,8.332105]
[1724694527541,401.3,156.12,156.02,6.4093]
[1724694527748,381.3,156.14,156.03,45.0]
[1724694527926,6.4049,156.13,156.03,45.0]
[1724694528115,6.4035,156.17,156.09,7.961]
[1724694528320,24.339205,156.19,156.09,23.9773]
[1724694528321,8.332105,156.19,156.09,23.9773]
[1724694528517,8.332105,156.19,156.09,23.4773]
[1724694528856,20.0,156.2,156.09,23.4773]
[1724694528857,6.4041,156.15,156.09,23.4773]
[1724694529140,6.404,156.16,156.09,23.4773]
[1724694529342,20.0,156.22,156.11,6.4056]
[1724694530032,20.0,156.2,156.09,23.4773]
[1724694530253,20.0,156.16,156.09,7.461]
[1724694530551,3.76573992,156.23,156.09,7.461]
[1724694530552,36.0075,156.18,156.09,7.461]
[1724694530725,20.0,156.17,156.1,45.0]
[1724694530916,20.0,156.19,156.1,45.0]
[1724694531121,6.4021,156.2,156.11,16.0134]
[1724694531334,20.0,156.23,156.12,45.0]
[1724694531539,6.4024,156.2,156.13,6.4049]
[1724694531744,6.4024,156.2,156.14,45.0]
[1724694532146,6.4029,156.18,156.12,6.4053]
[1724694532347,6.4029,156.18,156.13,45.0]
[1724694532535,6.4024,156.2,156.13,51.4049]
[1724694532742,6.4026,156.19,156.13,51.4049]
[1724694533336,6.403,156.18,156.13,45.0]
[1724694533625,6.403,156.18,156.12,51.4053]
[1724694533845,6.73248705,156.28,156.12,51.4053]
[1724694533846,6.4016,156.22,156.15,6.4036]
[1724694534024,20.0,156.25,156.16,45.0]
[1724694534225,6.4029,156.18,156.12,51.4051]
[1724694534451,6.4037,156.16,156.12,45.0]
[1724694534623,6.4042,156.15,156.09,7.461]
[1724694534824,6.4036,156.16,156.1,45.0]
[1724694535252,6.4036,156.16,156.1,51.406]
[1724694535720,6.4036,156.16,156.1,45.0]
[1724694535924,5.24351335,156.31,156.17,19.4671]
[1724694536125,5.24351335,156.31,156.15,126.91413582]
[1724694536126,20.0,156.6,156.38,15.69168087]
[1724694536374,20.0,156.62,156.47,6.3909]
[1724694536536,20.0,156.62,156.48,45.0]
[1724694536743,20.0,156.64,156.48,45.0]
[1724694537046,20.0,156.64,156.49,6.39]
[1724694537352,20.0,156.6,156.48,15.9757]
[1724694537556,6.3874,156.56,156.49,45.0]
[1724694538063,20.0,156.6,156.49,45.0]
[1724694538236,31.9186,156.65,156.37,19.2803]
[1724694538237,20.0,156.53,156.37,19.2803]
[1724694538420,20.0,156.53,156.38,45.0]
[1724694538625,20.0,156.51,156.38,45.0]
[1724694539048,6.3927,156.43,156.31,47.44701791]
[1724694539355,7.4365,156.52,156.34,47.44701791]
[1724694539559,20.0,156.51,156.34,47.44701791]
[1724694539861,40.0,156.51,156.31,47.44701791]
[1724694540046,6.3928,156.43,156.31,47.44701791]
[1724694540229,6.3936,156.41,156.31,47.44701791]
[1724694541042,15.9755,156.49,156.34,47.44701791]
[1724694541332,31.9438,156.53,156.41,47.44701791]
[1724694541657,0.8128247,156.55,156.44,47.44701791]
[1724694541963,0.8128247,156.55,156.47,47.44701791]
[1724694542374,6.3899,156.5,156.48,45.0]
[1724694542557,6.3895,156.51,156.48,45.0]
[1724694542871,6.3898,156.5,156.48,45.0]
[1724694543355,7.2007247,156.55,156.48,45.0]
[1724694543772,0.8128247,156.55,156.48,45.0]
[1724694543942,0.8128247,156.55,156.5,47.44701791]
[1724694544146,0.8128247,156.55,156.51,45.0]
[1724694544354,6.3888,156.53,156.51,45.0]
[1724694544852,0.8128247,156.55,156.41,47.44701791]
[1724694545059,3.29691706,156.98,156.68,20.0]
[1724694545263,16.7351247,157.02,156.8,47.44701791]
[1724694545430,16.7351247,157.02,156.84,53.82261791]
[1724694545661,16.7351247,157.02,156.86,15.937]
[1724694545662,6.3701,156.99,156.86,15.937]
[1724694545862,6.3691,157.01,156.89,47.44701791]
[1724694546166,0.8128247,157.02,156.9,16.76804481]
[1724694546341,0.8128247,157.02,156.92,6.3723]
[1724694546549,7.1816247,157.02,156.93,7.20673202]
[1724694546734,0.8128247,157.02,156.94,6.3716]
[1724694546932,7.1816247,157.02,156.93,6.3719]
[1724694547144,0.8128247,157.02,156.94,15.9291]
[1724694547434,0.8128247,157.02,156.95,0.83579929]
[1724694547756,0.18978063,157.11,157.03,6.368]
[1724694547936,15.9065,157.17,157.01,47.44701791]
[1724694547937,6.3647,157.12,157.04,45.0]
[1724694548372,6.3644,157.13,157.03,45.0]
[1724694548574,20.0,157.21,157.03,51.3678]
[1724694548876,6.3677,157.05,157.03,45.0]
[1724694549040,6.3684,157.03,156.92,22.3035]
[1724694549383,6.3675,157.05,156.93,45.0]
[1724694549551,6.3674,157.05,156.95,6.371]
[1724694549882,0.1184451,157.06,156.92,15.9311]
[1724694549883,6.3692,157.01,156.92,15.9311]
[1724694550164,16.0368451,157.06,156.87,15.9365]
[1724694550347,6.3699,156.99,156.89,6.3738]
[1724694550553,20.0,157.05,156.87,15.9365]
[1724694551162,6.3691,157.01,156.9,6.3732]
[1724694551371,6.3691,157.01,156.91,1.27375602]
[1724694551665,6.3697,157.0,156.89,6.3737]
[1724694551879,6.3708,156.97,156.87,22.3111]
[1724694552077,6.3717,156.95,156.87,15.9365]
[1724694552277,6.3708,156.97,156.87,17.18428352]
[1724694552484,15.922,157.02,156.84,1.24762444]
[1724694552693,6.3724,156.93,156.85,1.24873092]
[1724694552974,6.3724,156.93,156.84,1.25064409]
[1724694553295,6.3716,156.95,156.86,1.25048463]
[1724694553987,6.372,156.94,156.86,1.25048463]
[1724694554389,20.0,157.01,156.87,1.25040491]
[1724694554881,20.0,157.01,156.86,63.38421791]
[1724694555256,20.0,157.01,156.87,45.0]
[1724694555461,20.0,157.01,156.86,17.18720633]
[1724694555999,20.0,157.01,156.86,64.63422424]
[1724694556496,6.3707,156.97,156.89,6.3736]
[1724694556784,20.0,157.01,156.9,45.0]
[1724694556983,6.3687,157.02,156.94,6.3715]
[1724694557192,6.3687,157.02,156.95,45.0]
[1724694557364,6.3693,157.01,156.95,45.0]
[1724694558209,0.1184451,157.06,156.95,45.0]
[1724694558210,6.368,157.04,156.96,7.62030223]
[1724694558394,6.368,157.04,156.97,45.0]
[1724694558591,6.368,157.04,156.98,1.25001625]
[1724694558758,6.368,157.04,156.99,1.24993662]
[1724694559471,0.1184451,157.06,156.98,47.44701791]
[1724694559815,0.1184451,157.06,157.02,6.3684]
[1724694560016,0.1184451,157.06,157.03,45.0]
[1724694560715,6.3674,157.05,157.03,45.0]
[1724694562002,6.3683,157.03,156.94,6.3717]
[1724694562514,6.3687,157.02,156.94,6.3717]
[1724694562713,6.3691,157.01,156.94,6.3717]
[1724694563079,6.3685,157.03,156.94,6.3717]
[1724694563805,6.3686,157.02,156.95,45.0]
[1724694564698,6.3687,157.02,156.95,46.02819704]
[1724694564881,6.3687,157.02,156.94,45.0]
[1724694565200,6.3687,157.02,156.95,6.3714]
[1724694565413,6.3684,157.03,156.96,45.0]
[1724694565698,0.1184451,157.06,156.96,45.0]
[1724694566276,6.368,157.04,156.96,45.0]
[1724694566493,6.3682,157.03,156.96,51.3709]
[1724694566699,0.1184451,157.06,156.96,51.3709]
[1724694566700,6.3687,157.02,156.96,45.0]
[1724694567204,6.3702,156.98,156.91,6.3729]
[1724694567412,15.9193,157.05,156.91,6.373]
[1724694567578,6.3698,156.99,156.89,63.38131791]
[1724694567773,0.1184451,157.06,156.94,47.44701791]
[1724694567989,6.3678,157.04,156.98,6.3702]
[1724694568411,6.3678,157.04,156.97,6.3706]
[1724694568617,6.3682,157.03,156.98,45.0]
[1724694568906,6.3678,157.04,156.98,45.0]
[1724694569313,0.1184451,157.06,157.01,6.3689]
[1724694569513,0.1184451,157.06,157.02,45.0]
[1724694569882,0.1184451,157.06,157.02,51.3686]
[1724694570180,20.0,157.33,157.05,19.26]
[1724694570385,20.0,157.33,157.03,67.44701791]
[1724694570386,20.0,157.35,157.12,47.44701791]
[1724694570580,7.3236726,157.25,157.15,47.44701791]
[1724694570882,7.3236726,157.25,157.18,22.2669]
[1724694571391,0.9642726,157.25,157.19,45.0]
[1724694571589,6.3609,157.22,157.19,45.0]
[1724694572406,0.9642726,157.25,157.19,45.0]
[1724694572620,6.3597,157.24,157.19,45.0]
[1724694572918,6.3603,157.23,157.19,45.0]
[1724694573291,0.9642726,157.25,157.2,1.2713894]
[1724694573582,6.361,157.21,157.19,45.0]
[1724694573995,0.9642726,157.25,157.12,53.81141791]
[1724694574199,0.9642726,157.25,157.13,21.27183733]
[1724694574484,6.3611,157.21,157.15,6.3633]
[1724694574706,6.3604,157.23,157.16,6.3628]
[1724694574897,7.3237726,157.25,157.17,6.3623]
[1724694575203,7.3237726,157.25,157.18,45.0]
[1724694575520,0.9642726,157.25,157.18,93.71845064]
[1724694575688,0.9642726,157.25,157.22,15.901]
[1724694575892,0.9642726,157.25,157.23,46.27134238]
[1724694576108,0.9642726,157.25,157.24,1.27126152]
[1724694576981,0.9642726,157.25,157.23,45.0]
[1724694577409,0.9642726,157.25,157.21,6.3609]
[1724694577410,0.9642726,157.25,157.22,45.0]
[1724694577718,15.8856,157.38,157.24,47.44701791]
[1724694577911,6.3565,157.32,157.25,65.0]
[1724694578246,39.9044,157.4,157.25,45.0]
[1724694578390,6.3588,157.26,157.25,45.0]
[1724694578590,6.3584,157.27,157.25,45.0]
[1724694579106,15.8913,157.32,157.25,45.0]
[1724694579284,20.0,157.31,157.25,45.0]
[1724694579487,6.3585,157.27,157.25,45.0]
[1724694579903,20.0,157.31,157.19,22.2654]
[1724694579904,20.0,157.31,157.19,15.9041]
[1724694580083,15.8943,157.29,157.15,15.9076]
[1724694580287,15.8973,157.26,157.15,15.9076]
[1724694580596,20.0,157.25,157.12,6.3641]
[1724694580802,6.3629,157.16,157.06,47.44701791]
[1724694581020,15.9035,157.2,157.07,15.9157]
[1724694581325,6.3642,157.13,157.07,15.9157]
[1724694581506,6.3642,157.13,157.07,22.2822]
[1724694581814,20.0,157.38,157.11,47.44701791]
[1724694582037,20.0,157.36,157.17,6.3624]
[1724694582215,6.3592,157.26,157.16,15.9072]
[1724694582526,15.89,157.34,157.19,15.9042]
[1724694582727,15.8924,157.31,157.19,15.9042]
[1724694583027,6.3593,157.25,157.2,45.0]
[1724694583327,6.3593,157.25,157.15,47.44701791]
[1724694583328,15.8954,157.28,157.15,22.2707]
[1724694583630,6.361,157.21,157.15,15.9074]
[1724694583832,20.0,157.27,157.15,15.9074]
[1724694584225,15.8985,157.25,157.15,6.3633]
[1724694584535,20.0,157.24,157.13,6.3637]
[1724694584743,20.0,157.24,157.11,15.9115]
[1724694584744,6.3622,157.18,157.11,15.9115]
[1724694585102,6.3617,157.19,157.11,22.276]
[1724694585437,6.3626,157.17,157.11,15.9115]
[1724694585602,6.3633,157.16,157.08,6.3658]
[1724694585916,6.3638,157.14,157.08,6.3658]
[1724694586106,15.9043,157.19,157.03,63.36681791]
[1724694586300,31.8021,157.23,157.03,63.36681791]
[1724694586301,15.9074,157.16,157.03,63.36681791]
[1724694586607,6.3649,157.12,157.05,6.3672]
[1724694587008,15.9074,157.16,157.03,22.2876]
[1724694587318,6.3657,157.09,157.03,22.2876]
[1724694587509,15.9106,157.13,157.0,47.78059072]
[1724694587706,6.3661,157.09,157.03,6.3681]
[1724694588415,6.3661,157.09,157.02,22.2898]
[1724694588625,20.0,157.12,157.0,6.3691]
[1724694588808,6.3666,157.07,157.0,6.3691]
[1724694589522,6.3666,157.07,157.01,6.3689]
[1724694589849,6.3666,157.07,157.0,6.3694]
[1724694590021,6.367,157.06,157.0,6.3694]
[1724694590221,15.9134,157.1,156.98,15.9248]
[1724694590423,20.0,157.09,156.98,15.9248]
[1724694591430,6.3682,157.03,156.98,15.9248]
[1724694591632,20.0,157.09,156.98,15.9248]
[1724694591841,20.0,157.09,156.99,1.27337905]
[1724694592324,31.8182,157.15,157.0,15.9225]
[1724694592325,15.9104,157.13,157.0,15.9225]
[1724694592525,6.3661,157.09,157.01,1.27304698]
[1724694592753,6.3661,157.09,157.02,1.2729659]
[1724694593054,6.3674,157.05,157.01,45.0]
[1724694593232,20.0,157.12,157.01,45.0]
[1724694593437,20.0,157.14,157.02,1.27183595]
[1724694593643,20.0,157.14,157.01,45.0]
[1724694593818,6.3667,157.07,157.01,45.0]
[1724694594339,35.9094,157.14,157.02,1.27151195]
[1724694594950,6.3661,157.08,157.01,45.0]
[1724694595252,6.3666,157.07,157.01,51.3686]
[1724694595617,6.3662,157.08,157.02,6.3685]
[1724694595847,6.3662,157.08,157.03,45.0]
[1724694596052,35.9094,157.14,157.03,45.0]
[1724694596053,6.3666,157.07,157.03,45.0]
[1724694596221,6.3666,157.07,157.01,6.3689]
[1724694596222,6.3666,157.07,157.02,45.0]
[1724694596620,35.9094,157.14,157.02,45.0]
[1724694596621,20.0,157.14,157.02,45.0]
[1724694596938,20.0,157.14,156.98,6.3702]
[1724694596939,15.9164,157.08,156.98,6.3702]
[1724694597121,6.3678,157.04,156.98,6.3702]
[1724694597321,6.3678,157.04,156.99,0.49079077]
[1724694597518,6.3688,157.02,156.99,1.27338174]
[1724694597761,6.3682,157.03,156.97,6.3706]
[1724694598761,6.3686,157.02,156.97,6.3706]
[1724694598926,6.3682,157.03,156.97,6.3706]
[1724694599565,20.0,157.2,157.0,47.44701791]
[1724694599772,6.3663,157.08,157.02,6.3685]
[1724694600054,31.8029,157.22,157.03,45.0]
[1724694600055,51.8182,157.15,157.03,45.0]
[1724694600259,6.368,157.04,157.01,45.0]
[1724694600457,6.3684,157.03,157.01,45.0]
[1724694600658,6.3686,157.02,157.01,45.0]
[1724694601828,31.8338,157.07,156.91,6.58121858]
[1724694602041,31.8338,157.07,156.9,6.3734]
[1724694602042,6.3714,156.96,156.9,6.3734]
[1724694602236,6.3718,156.94,156.89,15.9346]
[1724694602437,20.0,157.06,156.85,69.96850413]
[1724694602645,6.3722,156.93,156.85,69.96850413]
[1724694602847,6.3719,156.94,156.88,6.3742]
[1724694603053,6.3719,156.94,156.87,15.9358]
[1724694603278,20.0,157.06,156.88,47.44701791]
[1724694603561,20.0,157.06,156.92,15.9308]
[1724694603562,6.3704,156.98,156.92,15.9308]
[1724694603774,31.49206455,157.18,156.88,47.44701791]
[1724694603775,6.3688,157.02,156.96,6.371]
[1724694603932,6.3688,157.02,156.97,45.0]
[1724694604664,6.3691,157.01,156.97,45.0]
[1724694604843,15.9192,157.05,156.96,45.0]
[1724694605049,15.9192,157.05,156.88,79.31741791]
[1724694605050,15.9212,157.03,156.95,45.0]
[1724694605251,6.3707,156.97,156.91,22.3051]
[1724694605864,15.9234,157.01,156.91,15.9325]
[1724694606039,6.371,156.97,156.91,15.9325]
[1724694606857,6.3718,156.95,156.89,6.3738]
[1724694607062,6.3718,156.95,156.9,6.3734]
[1724694607269,20.0,157.0,156.91,15.9324]
[1724694607270,6.3707,156.97,156.91,15.9324]
[1724694607865,15.9255,156.99,156.88,15.9354]
[1724694608074,6.3718,156.94,156.88,22.3096]
[1724694608383,6.3724,156.93,156.88,15.9354]
[1724694608667,20.0,157.09,156.94,6.3716]
[1724694608855,20.0,157.18,156.94,6.3716]
[1724694608856,6.3693,157.01,156.94,6.3716]
[1724694609260,6.3694,157.0,156.94,6.3716]
[1724694609459,6.3699,156.99,156.94,6.3716]
[1724694609651,6.3702,156.98,156.93,15.9302]
[1724694609970,51.8338,157.07,156.95,45.0]
[1724694609971,6.371,156.96,156.95,45.0]
[1724694610149,15.9244,157.0,156.88,31.8704]
[1724694610150,15.9244,157.0,156.88,6.3742]
[1724694610354,20.0,156.96,156.88,6.3742]
[1724694610549,6.3715,156.95,156.89,6.3737]
[1724694610743,15.9244,157.0,156.91,6.3727]
[1724694610943,6.3709,156.97,156.91,6.3727]
[1724694611168,6.3709,156.97,156.92,6.3725]
[1724694611543,6.3709,156.97,156.93,45.0]
[1724694611772,6.371,156.96,156.93,45.0]
[1724694612857,20.0,156.99,156.93,45.0]
[1724694613268,6.3718,156.94,156.89,15.934]
[1724694613563,20.0,156.99,156.89,15.934]
[1724694613769,6.3723,156.93,156.89,15.934]
[1724694613942,15.9281,156.96,156.87,0.5963976]
[1724694614142,20.0,156.95,156.87,0.5963976]
[1724694614539,6.3719,156.94,156.89,6.3738]
[1724694614767,6.3719,156.94,156.88,6.3741]
[1724694615792,6.3723,156.93,156.89,45.0]
[1724694616070,6.3727,156.92,156.87,6.9707976]
[1724694616567,6.3727,156.92,156.87,0.5963976]
[1724694616769,6.3739,156.89,156.87,0.5963976]
[1724694617687,6.3742,156.88,156.87,0.5963976]
[1724694617974,26.3742,156.88,156.87,0.5963976]
[1724694619585,26.3742,156.88,156.87,9.76e-05]
[1724694619887,26.3742,156.88,156.73,22.3312]
[1724694619888,6.378,156.79,156.73,22.3312]
[1724694620277,6.3787,156.78,156.72,0.8200549]
[1724694620473,15.9426,156.82,156.72,0.8200549]
[1724694620677,6.3788,156.77,156.72,0.8200549]
[1724694620987,15.9426,156.82,156.72,0.8200549]
[1724694621179,20.0,156.81,156.72,0.8200549]
[1724694621682,6.3784,156.78,156.72,7.2007549]
[1724694621895,20.0,156.81,156.72,0.8200549]
[1724694622191,6.3792,156.76,156.72,0.8200549]
[1724694622378,6.3797,156.75,156.72,0.8200549]
[1724694623082,6.3792,156.76,156.72,0.8200549]
[1724694623589,15.9447,156.8,156.72,0.8200549]
[1724694623770,6.3797,156.75,156.72,0.8200549]
[1724694624295,20.0,156.79,156.72,0.8200549]
[1724694624476,6.3788,156.77,156.72,0.8200549]
[1724694624675,26.3791,156.76,156.72,0.8200549]
[1724694625177,20.0,156.76,156.72,0.8200549]
[1724694625485,6.3788,156.77,156.72,0.8200549]
[1724694625683,20.0,156.76,156.72,0.8200549]
[1724694625992,26.3792,156.76,156.72,0.8200549]
[1724694626195,6.3799,156.75,156.72,0.8200549]
[1724694626369,26.3792,156.76,156.72,0.8200549]
[1724694626992,6.3796,156.75,156.72,0.8200549]
[1724694627298,6.3803,156.73,156.72,0.8200549]
[1724694627770,26.3803,156.73,156.72,0.8200549]
[1724694628892,26.3803,156.73,156.62,6.3845]
[1724694628893,6.382,156.69,156.62,6.3845]
[1724694629106,6.3828,156.68,156.61,6.385]
[1724694629487,6.3833,156.66,156.6,6.3856]
[1724694629789,6.3829,156.67,156.61,7.13577836]
[1724694629991,6.3829,156.67,156.61,6.3851]
[1724694630177,19.8271,156.7,156.61,6.3851]
[1724694630178,6.3824,156.69,156.62,15.9615]
[1724694630366,20.0,156.68,156.63,6.3843]
[1724694630570,6.3832,156.67,156.61,6.3852]
[1724694630775,19.8271,156.7,156.6,15.9633]
[1724694630776,6.3838,156.65,156.6,15.9633]
[1724694630971,15.957,156.68,156.57,15.967]
[1724694631176,6.3849,156.62,156.57,15.967]
[1724694631389,6.3869,156.57,156.56,0.8200549]
[1724694631596,6.3894,156.51,156.44,6.3922]
[1724694631793,40.59,156.57,156.42,15.9817]
[1724694631794,20.59,156.57,156.42,15.9817]
[1724694632075,6.3898,156.5,156.43,6.3925]
[1724694632781,6.3898,156.5,156.44,6.3922]
[1724694632982,20.59,156.57,156.46,6.3913]
[1724694633178,20.0,156.56,156.46,6.3913]
[1724694633781,6.3885,156.53,156.45,6.3918]
[1724694633971,20.0,156.52,156.45,6.3918]
[1724694634177,20.0,156.52,156.46,6.3912]
[1724694635178,20.59,156.57,156.48,15.9758]
[1724694635384,20.59,156.57,156.49,1.27598928]
[1724694635584,20.59,156.57,156.52,6.3889]
[1724694635785,20.59,156.57,156.53,45.0]
[1724694636309,20.59,156.57,156.52,45.0]
[1724694637986,6.3881,156.55,156.52,45.0]
[1724694638320,6.3885,156.53,156.47,22.3675]
[1724694638607,20.59,156.57,156.48,6.3905]
[1724694638908,20.0,156.56,156.43,15.9806]
[1724694639812,6.3898,156.5,156.44,6.3922]
[1724694640123,35.9693,156.56,156.43,15.9806]
[1724694641006,35.9693,156.56,156.44,45.0]
[1724694641187,6.3889,156.52,156.46,6.3913]
[1724694641386,6.3889,156.52,156.47,45.0]
[1724694641608,20.0,156.51,156.47,45.0]
[1724694642015,401.89,156.57,156.47,45.0]
[1724694642309,6.3874,156.56,156.5,6.3896]
[1724694642491,6.3874,156.56,156.51,45.0]